fUSD/lending_fUSD_20240708
["ID","MTS","AMOUNT","RATE_DAILY","PERIOD"]
[331521866,1720446809530,-935.62164931,0.00055616,120]
[331521867,1720446809643,-675.54788931,0.00055616,120]
[331521868,1720446809749,-2876.72673185,0.00055616,120]
[331521869,1720446809856,-586.32736771,0.00055616,120]
[331521870,1720446809960,-1521.64,0.00055616,120]
[331521871,1720446810063,-359.083633,0.0005589,30]
[331521872,1720446810164,-1000.0,0.00056,30]
[331521873,1720446810263,-1000.0,0.00056,30]
[331521874,1720446810361,-150.0,0.00056096,120]
[331521875,1720446810462,-1133.72,0.00056164,120]
[331521876,1720446810561,-2035.02,0.00056164,120]
[331521877,1720446810663,-500.0,0.000567,120]
[331521878,1720446810767,-500.0,0.000567,120]
[331521879,1720446810864,-500.0,0.000567,120]
[331521880,1720446810964,-500.0,0.000567,120]
[331521881,1720446811059,-500.0,0.000567,120]
[331521882,1720446811156,-500.0,0.000567,120]
[331521883,1720446811259,-500.0,0.000567,120]
[331521884,1720446811362,-500.0,0.000567,120]
[331521885,1720446811466,-500.0,0.000567,120]
[331521886,1720446811566,-500.0,0.000567,120]
[331521887,1720446811665,-500.0,0.000567,120]
[331521888,1720446811768,-500.0,0.000567,120]
[331521889,1720446811865,-500.0,0.000567,120]
[331521890,1720446811963,-500.0,0.000567,120]
[331521891,1720446812059,-500.0,0.000567,120]
[331521892,1720446812155,-500.0,0.000567,120]
[331521893,1720446812252,-500.0,0.000567,120]
[331521894,1720446812345,-500.0,0.000567,120]
[331521895,1720446812450,-500.0,0.000567,120]
[331521896,1720446812551,-500.0,0.000567,120]
[331521897,1720446812649,-359.083633,0.00056712,30]
[331521898,1720446812747,-1000000.0,0.00057,120]
[331521899,1720446812848,-1000000.0,0.00057,120]
[331521900,1720446812946,-174.190582,0.00057,120]
[331521901,1720446813043,-174.190582,0.00057,120]
[331521902,1720446813139,-310.756193,0.00057,60]
[331521903,1720446813238,-310.756193,0.00057,60]
[331521904,1720446813338,-151.0,0.00057,120]
[331521905,1720446813459,-165.972742,0.00057,120]
[331521906,1720446813583,-1000.0,0.00057,30]
[331521907,1720446813706,-1000.0,0.00057,30]
[331521908,1720446813814,-216.443034,0.00057,120]
[331521909,1720446813926,-216.443034,0.00057,120]
[331521910,1720446814029,-198.096338,0.00057,120]
[331521911,1720446814138,-151.0,0.00057,120]
[331521912,1720446814249,-524.979918,0.00057,120]
[331521913,1720446814357,-198.096338,0.00057,120]
[331521914,1720446814470,-524.979918,0.00057,120]
[331521915,1720446814580,-740.949462,0.00057,120]
[331521916,1720446814682,-116959.99273581,0.00057,120]
[331521917,1720446815148,551.38570328,0.00011199,2]
[331521918,1720446816174,551.38570328,0.00011199,2]
[331521919,1720446816462,-500.0,0.00049315,120]
[331521920,1720446816565,-500.0,0.00049315,120]
[331521921,1720446816670,-500.0,0.00049315,120]
[331521922,1720446816778,-1309.06,0.00049315,120]
[331521923,1720446816880,-500.0,0.00049315,120]
[331521924,1720446816981,-500.0,0.00049315,120]
[331521925,1720446817087,-500.0,0.00049315,120]
[331521926,1720446817188,-500.0,0.00049315,120]
[331521927,1720446817296,-500.0,0.00049315,120]
[331521928,1720446817405,-500.0,0.00049315,120]
[331521929,1720446817524,-500.0,0.00049315,120]
[331521930,1720446817639,-500.0,0.00049315,120]
[331521931,1720446817746,-500.0,0.00049315,120]
[331521932,1720446817851,-500.0,0.00049589,120]
[331521933,1720446817954,-500.0,0.00049589,120]
[331521934,1720446818058,-500.0,0.00049589,120]
[331521935,1720446818159,-1309.06,0.00049589,120]
[331521936,1720446818260,-500.0,0.00049589,120]
[331521937,1720446818367,-500.0,0.00049589,120]
[331521938,1720446818491,-500.0,0.00049589,120]
[331521939,1720446818613,-500.0,0.00049589,120]
[331521940,1720446818728,-500.0,0.00049589,120]
[331521941,1720446818837,-500.0,0.00049589,120]
[331521942,1720446818946,-500.0,0.00049589,120]
[331521943,1720446819064,-500.0,0.00049589,120]
[331521944,1720446819193,-500.0,0.00049589,120]
[331521945,1720446819324,-500.0,0.00049863,120]
[331521946,1720446819457,-500.0,0.00049863,120]
[331521947,1720446819587,-500.0,0.00049863,120]
[331521948,1720446819713,-1309.06,0.00049863,120]
[331521949,1720446819838,-500.0,0.00049863,120]
[331521950,1720446819962,-500.0,0.00049863,120]
[331521951,1720446820084,-500.0,0.00049863,120]
[331521952,1720446820202,-507.03885999,0.00049863,120]
[331521953,1720446820318,-500.0,0.00049863,120]
[331521954,1720446820436,-500.0,0.00049863,120]
[331521955,1720446820550,-500.0,0.00049863,120]
[331521956,1720446820668,-500.0,0.00049863,120]
[331521957,1720446820786,-500.0,0.00050136,120]
[331521958,1720446820899,-500.0,0.00050136,120]
[331521959,1720446821015,-502.76203367,0.00050136,120]
[331521960,1720446821134,-1309.06,0.00050136,120]
[331521961,1720446821245,-500.0,0.00050136,120]
[331521962,1720446821354,-500.0,0.00050136,120]
[331521963,1720446821459,-500.0,0.00050136,120]
[331521964,1720446821567,-500.0,0.00050136,120]
[331521965,1720446821681,-500.0,0.00050136,120]
[331521966,1720446821788,-500.0,0.00050136,120]
[331521967,1720446821900,-500.0,0.00050136,120]
[331521968,1720446822016,-500.0,0.0005041,120]
[331521969,1720446822130,-500.0,0.0005041,120]
[331521970,1720446822242,-1309.06,0.0005041,120]
[331521971,1720446822352,-500.0,0.0005041,120]
[331521972,1720446822458,-500.0,0.0005041,120]
[331521973,1720446822565,-500.0,0.0005041,120]
[331521974,1720446822675,-500.0,0.0005041,120]
[331521975,1720446822786,-500.0,0.0005041,120]
[331521976,1720446822896,-500.0,0.0005041,120]
[331521977,1720446823002,-500.0,0.0005041,120]
[331521978,1720446823113,-500.0,0.00050684,120]
[331521979,1720446823220,-500.0,0.00050684,120]
[331521980,1720446823329,-1309.06,0.00050684,120]
[331521981,1720446823448,-500.0,0.00050684,120]
[331521982,1720446823679,-500.0,0.00050684,120]
[331521983,1720446823799,-500.0,0.00050684,120]
[331521984,1720446823911,-500.0,0.00050684,120]
[331521985,1720446824026,-500.0,0.00050684,120]
[331521986,1720446824138,-500.0,0.00050684,120]
[331521987,1720446824253,-500.0,0.00050684,120]
[331521988,1720446824374,-500.0,0.00050958,120]
[331521989,1720446824497,-500.0,0.00050958,120]
[331521990,1720446824622,-1309.06,0.00050958,120]
[331521991,1720446824744,-500.0,0.00050958,120]
[331521992,1720446824866,-310.34325769,0.00050958,120]
[331521993,1720446824979,-500.0,0.00050958,120]
[331521994,1720446825091,-500.0,0.00050958,120]
[331521995,1720446825204,-500.0,0.00050958,120]
[331521996,1720446825320,-500.0,0.00050958,120]
[331521997,1720446825432,-500.0,0.00050958,120]
[331521998,1720446825544,-500.0,0.00051232,120]
[331521999,1720446825662,-500.0,0.00051232,120]
[331522000,1720446825781,-1309.06,0.00051232,120]
[331522001,1720446825896,-500.0,0.00051232,120]
[331522002,1720446826006,-500.0,0.00051232,120]
[331522003,1720446826118,-500.0,0.00051232,120]
[331522004,1720446826231,-500.0,0.00051232,120]
[331522005,1720446826356,-500.0,0.00051232,120]
[331522006,1720446826470,-500.0,0.00051232,120]
[331522007,1720446826583,-8657.52,0.00051506,120]
[331522008,1720446826696,-500.0,0.00051506,120]
[331522009,1720446826806,-500.0,0.00051506,120]
[331522010,1720446826916,-1309.06,0.00051506,120]
[331522011,1720446827030,-500.0,0.00051506,120]
[331522012,1720446827143,-553.25,0.00051506,120]
[331522013,1720446827258,-500.0,0.00051506,120]
[331522014,1720446827370,-500.0,0.00051506,120]
[331522015,1720446827481,-500.0,0.00051506,120]
[331522016,1720446827594,-209.39,0.00051506,120]
[331522017,1720446827707,-8657.52,0.0005178,120]
[331522018,1720446827818,-500.0,0.0005178,120]
[331522019,1720446827929,-500.0,0.0005178,120]
[331522020,1720446828044,-1309.06,0.0005178,120]
[331522021,1720446828158,-500.0,0.0005178,120]
[331522022,1720446828272,-500.0,0.0005178,120]
[331522023,1720446828387,-500.0,0.0005178,120]
[331522024,1720446828511,-500.0,0.0005178,120]
[331522025,1720446828636,-8657.52,0.00052054,120]
[331522026,1720446828761,-500.0,0.00052054,120]
[331522027,1720446828884,-500.0,0.00052054,120]
[331522028,1720446829005,-1309.06,0.00052054,120]
[331522029,1720446829124,-500.0,0.00052054,120]
[331522030,1720446829240,-500.0,0.00052054,120]
[331522031,1720446829364,-500.0,0.00052054,120]
[331522032,1720446829491,-500.0,0.00052054,120]
[331522033,1720446829622,-8657.52,0.00052328,120]
[331522034,1720446829754,-235.07,0.00052328,120]
[331522035,1720446829878,-500.0,0.00052328,120]
[331522036,1720446830000,-1309.06,0.00052328,120]
[331522037,1720446830110,-500.0,0.00052328,120]
[331522038,1720446830221,-500.0,0.00052328,120]
[331522039,1720446830341,-500.0,0.00052328,120]
[331522040,1720446830453,-500.0,0.00052328,120]
[331522041,1720446830562,-8657.52,0.00052602,120]
[331522042,1720446830675,-154.04,0.00052602,120]
[331522043,1720446830785,-1309.06,0.00052602,120]
[331522044,1720446830891,-500.0,0.00052602,120]
[331522045,1720446830999,-500.0,0.00052602,120]
[331522046,1720446831105,-500.0,0.00052602,120]
[331522047,1720446831219,-500.0,0.00052602,120]
[331522048,1720446831328,-8657.52,0.00052876,120]
[331522049,1720446831435,-1309.06,0.00052876,120]
[331522050,1720446831541,-500.0,0.00052876,120]
[331522051,1720446831648,-500.0,0.00052876,120]
[331522052,1720446831756,-500.0,0.00052876,120]
[331522053,1720446831864,-500.0,0.00052876,120]
[331522054,1720446831975,-8657.52,0.0005315,120]
[331522055,1720446832083,-1309.06,0.0005315,120]
[331522056,1720446832191,-500.0,0.0005315,120]
[331522057,1720446832302,-500.0,0.0005315,120]
[331522058,1720446832427,-263.26224086,0.0005315,120]
[331522059,1720446832536,-500.0,0.0005315,120]
[331522060,1720446832645,-8657.52,0.00053424,120]
[331522061,1720446832756,-1309.06,0.00053424,120]
[331522062,1720446832868,-500.0,0.00053424,120]
[331522063,1720446832982,-500.0,0.00053424,120]
[331522064,1720446833308,-500.0,0.00053424,120]
[331522065,1720446833443,-8657.52,0.00053698,120]
[331522066,1720446833576,-1309.06,0.00053698,120]
[331522067,1720446833703,-500.0,0.00053698,120]
[331522068,1720446833829,-500.0,0.00053698,120]
[331522069,1720446833947,-500.0,0.00053698,120]
[331522070,1720446834069,-8657.52,0.00053972,120]
[331522071,1720446834182,-1309.06,0.00053972,120]
[331522072,1720446834299,-500.0,0.00053972,120]
[331522073,1720446834428,-500.0,0.00053972,120]
[331522074,1720446834553,-500.0,0.00053972,120]
[331522075,1720446834682,-8657.52,0.00054246,120]
[331522076,1720446834806,-1309.06,0.00054246,120]
[331522077,1720446834931,-500.0,0.00054246,120]
[331522078,1720446835053,-500.0,0.00054246,120]
[331522079,1720446835168,-500.0,0.00054246,120]
[331522080,1720446835283,-8657.52,0.0005452,120]
[331522081,1720446835399,-1309.06,0.0005452,120]
[331522082,1720446835512,-500.0,0.0005452,120]
[331522083,1720446835630,-500.0,0.0005452,120]
[331522084,1720446835744,-500.0,0.0005452,120]
[331522085,1720446835856,-8657.52,0.00054794,120]
[331522086,1720446835966,-1309.06,0.00054794,120]
[331522087,1720446836075,-557.7,0.00054794,120]
[331522088,1720446836185,-500.0,0.00054794,120]
[331522089,1720446836293,-500.0,0.00054794,120]
[331522090,1720446836400,-8657.52,0.00055068,120]
[331522091,1720446836505,-1309.06,0.00055068,120]
[331522092,1720446836610,-500.0,0.00055068,120]
[331522093,1720446836718,-438.79,0.00055068,120]
[331522094,1720446836822,-8657.52,0.00055342,120]
[331522095,1720446836927,-1309.06,0.00055342,120]
[331522096,1720446837035,-500.0,0.00055342,120]
[331522097,1720446837145,-8657.60490675,0.00055616,120]
[331522098,1720446837252,-1309.18670217,0.00055616,120]
[331522099,1720446837360,-217.39784795,0.00055616,120]
[331522100,1720446837464,-343040.00726419,0.00057,120]
[331522101,1720446837571,-740.949462,0.00057,120]
[331522102,1720446837680,-437.333711,0.00057,120]
[331522103,1720446837786,-437.333711,0.00057,120]
[331522104,1720446837895,-1000000.0,0.00057,120]
[331522105,1720446838007,-1000000.0,0.00057,120]
[331522106,1720446838120,-340.811865,0.00057,120]
[331522107,1720446838229,-1000000.0,0.00057,120]
[331522108,1720446838342,-1000000.0,0.00057,120]
[331522109,1720446838465,-340.811865,0.00057,120]
[331522110,1720446838588,-6883.70308208,0.00057,30]
[331522111,1720446838710,-297.652746,0.00057,120]
[331522112,1720446838830,-297.652746,0.00057,120]
[331522113,1720446838942,-297.652746,0.00057,120]
[331522114,1720446839057,-297.652746,0.00057,120]
[331522115,1720446839174,-938.43613,0.00057,120]
[331522116,1720446839295,-938.43613,0.00057,120]
[331522117,1720446839415,-938.43613,0.00057,120]
[331522118,1720446839536,-938.43613,0.00057,120]
[331522119,1720446839659,-200.0,0.000571,36]
[331522120,1720446839781,-200.0,0.000571,36]
[331522121,1720446839892,-200.0,0.000571,36]
[331522122,1720446840002,-23157.29401032,0.000572,120]
[331522123,1720446840109,-1133.72,0.0005726,120]
[331522124,1720446840250,-150.0,0.00057397,120]
[331522125,1720446840365,-2035.02,0.00057534,120]
[331522126,1720446840482,-359.083633,0.00057534,30]
[331522127,1720446840594,-151.0,0.00058,120]
[331522128,1720446840701,-1000000.0,0.00058,120]
[331522129,1720446840810,-376361.56004333,0.00058,120]
[331522130,1720446841198,367.59046886,0.00011199,2]
[331522131,1720446841497,-500.0,0.00049315,120]
[331522132,1720446841530,-500.0,0.00049315,120]
[331522133,1720446841562,-500.0,0.00049315,120]
[331522134,1720446841600,-707.42,0.00049315,120]
[331522135,1720446841641,-500.0,0.00049589,120]
[331522136,1720446841673,-500.0,0.00049589,120]
[331522137,1720446841706,-707.42,0.00049589,120]
[331522138,1720446841740,-500.0,0.00049863,120]
[331522139,1720446841771,-500.0,0.00049863,120]
[331522140,1720446841804,-707.42,0.00049863,120]
[331522141,1720446841844,-500.0,0.00050136,120]
[331522142,1720446841878,-547.34,0.00050136,120]
[331522143,1720446841909,-707.42,0.00050136,120]
[331522144,1720446841941,-500.0,0.0005041,120]
[331522145,1720446841975,-500.0,0.00050684,120]
[331522146,1720446842006,-323.59,0.00050958,120]
[331522147,1720446842057,-353838.43995667,0.00058,120]
[331522148,1720446842090,-151.0,0.00058,120]
[331522149,1720446842124,-174.190582,0.00058,120]
[331522150,1720446842155,-174.190582,0.00058,120]
[331522151,1720446842186,-310.756193,0.00058,60]
[331522152,1720446842218,-310.756193,0.00058,60]
[331522153,1720446842251,-5824.62207198,0.00058,90]
[331522154,1720446842282,-151.0,0.00058,120]
[331522155,1720446842314,-1000.0,0.00058,30]
[331522156,1720446842346,-1000.0,0.00058,30]
[331522157,1720446842378,-216.443034,0.00058,120]
[331522158,1720446842410,-216.443034,0.00058,120]
[331522159,1720446842441,-198.096338,0.00058,120]
[331522160,1720446842474,-151.0,0.00058,120]
[331522161,1720446842505,-524.979918,0.00058,120]
[331522162,1720446842537,-198.096338,0.00058,120]
[331522163,1720446842568,-524.979918,0.00058,120]
[331522164,1720446842601,-740.949462,0.00058,120]
[331522165,1720446842631,-740.949462,0.00058,120]
[331522166,1720446842661,-437.333711,0.00058,120]
[331522167,1720446842692,-437.333711,0.00058,120]
[331522168,1720446842723,-1000000.0,0.00058,120]
[331522169,1720446842754,-1000000.0,0.00058,120]
[331522170,1720446842785,-340.811865,0.00058,120]
[331522171,1720446842816,-340.811865,0.00058,120]
[331522172,1720446842848,-297.652746,0.00058,120]
[331522173,1720446842879,-297.65275,0.00058,120]
[331522174,1720446842911,-938.43613,0.00058,120]
[331522175,1720446842941,-938.436128,0.00058,120]
[331522176,1720446842972,-359.083633,0.00058356,30]
[331522177,1720446843003,-151.0,0.000585,120]
[331522178,1720446843032,-151.0,0.000585,120]
[331522179,1720446843062,-150.0,0.00058699,120]
[331522180,1720446843096,-2035.02,0.00058904,120]
[331522181,1720446843130,-1000000.0,0.00059,120]
[331522182,1720446843161,-1000000.0,0.00059,120]
[331522183,1720446843192,-1000000.0,0.00059,120]
[331522184,1720446843224,-1000000.0,0.00059,120]
[331522185,1720446843256,-1000000.0,0.00059,120]
[331522186,1720446843288,-151.0,0.00059,120]
[331522187,1720446843320,-730000.0,0.00059,120]
[331522188,1720446843350,-174.190582,0.00059,120]
[331522189,1720446843382,-174.19058,0.00059,120]
[331522190,1720446843415,-310.756193,0.00059,60]
[331522191,1720446843447,-310.756197,0.00059,60]
[331522192,1720446843480,-151.0,0.00059,120]
[331522193,1720446843514,-1000.0,0.00059,30]
[331522194,1720446843545,-1000.0,0.00059,30]
[331522195,1720446843581,-216.443034,0.00059,120]
[331522196,1720446843616,-216.443026,0.00059,120]
[331522197,1720446843648,-198.096338,0.00059,120]
[331522198,1720446843682,-222.717621,0.00059,120]
[331522199,1720446843716,-524.979918,0.00059,120]
[331522200,1720446843750,-198.096334,0.00059,120]
[331522201,1720446843783,-524.979918,0.00059,120]
[331522202,1720446843815,-740.949462,0.00059,120]
[331522203,1720446843850,-740.949457,0.00059,120]
[331522204,1720446843882,-437.333711,0.00059,120]
[331522205,1720446843916,-437.333719,0.00059,120]
[331522206,1720446843952,-880247.70828835,0.00059,120]
[331522207,1720446846769,-150.0,0.00012356,2]
[331522208,1720446846778,-130.56667432,0.00012356,2]
[331522209,1720446846790,-169.43332568,0.00012356,2]
[331522210,1720446846799,-130.66146932,0.00012357,2]
[331522211,1720446846810,-86.26873505,0.00012357,2]
[331522212,1720446846820,-358.54657795,0.00012357,2]
[331522213,1720446846831,-7.10961473,0.00012357,2]
[331522214,1720446846842,-262.68605874,0.00012357,2]
[331522215,1720446846851,-369.18293041,0.00012357,2]
[331522216,1720446846860,-831.58647361,0.00012357,2]
[331522217,1720446846871,-746.44510063,0.00012357,2]
[331522218,1720446846883,-9417.58404859,0.00012357,2]
[331522219,1720446846893,-155.0,0.00012357,2]
[331522220,1720446846902,-932.32943712,0.00012357,2]
[331522221,1720446846911,-492.47206578,0.00012357,2]
[331522222,1720446846922,-5176.13327928,0.00012357,2]
[331522223,1720446846931,-155.58384441,0.00012357,2]
[331522224,1720446846940,-199.77368546,0.00012357,2]
[331522225,1720446846950,-227.24934482,0.00012357,2]
[331522226,1720446846960,-438.48996722,0.00012357,2]
[331522227,1720446846970,-332.4362693,0.00012357,2]
[331522228,1720446847217,-1286.37920211,0.00012357,7]
[331522229,1720446847229,-155.0,0.00012357,2]
[331522230,1720446847239,-206.91758003,0.00012357,2]
[331522231,1720446847250,-806.53671326,0.00012357,2]
[331522232,1720446847260,-483.79219691,0.00012357,2]
[331522233,1720446847271,-163.56619356,0.00012357,2]
[331522234,1720446847281,-257.20648936,0.00012357,2]
[331522235,1720446847290,-1011.40063973,0.00012357,2]
[331522236,1720446847300,-451.19805924,0.00012357,2]
[331522237,1720446847310,-315.95147234,0.00012357,2]
[331522238,1720446847320,-305.65539149,0.00012357,2]
[331522239,1720446847332,-433.84789977,0.00012357,2]
[331522240,1720446847342,-155.50140611,0.00012357,2]
[331522241,1720446847351,-269.0153369,0.00012357,2]
[331522242,1720446847361,-175.45597426,0.00012357,2]
[331522243,1720446847371,-254.227224,0.00012357,2]
[331522244,1720446847379,-500.0,0.00012494,2]
[331522245,1720446847389,-250.0,0.00012506,2]
[331522246,1720446847399,-250.0,0.00012565,2]
[331522247,1720446847409,-185.23,0.00012626,2]
[331522248,1720446847419,-606.0,0.00012631,2]
[331522249,1720446847429,-1551.79,0.0001265,2]
[331522250,1720446847439,-1000.0,0.00012665,2]
[331522251,1720446847450,-499.99,0.00012665,2]
[331522252,1720446847460,-150.0,0.00012767,2]
[331522253,1720446847470,-23900.0,0.00012783,2]
[331522254,1720446847480,-162.51,0.00012878,2]
[331522255,1720446847489,-162.51,0.00012945,2]
[331522256,1720446847499,-162.51,0.00013012,2]
[331522257,1720446847508,-162.51,0.00013079,2]
[331522258,1720446847518,-406.5996,0.00013123,2]
[331522259,1720446847528,-616.94,0.0001313,2]
[331522260,1720446847539,-1453.04,0.00013143,2]
[331522261,1720446847548,-162.51,0.00013146,2]
[331522262,1720446847559,-162.51,0.00013213,2]
[331522263,1720446847569,-162.51,0.00013281,2]
[331522264,1720446847583,-162.51,0.00013348,2]
[331522265,1720446847594,-162.51,0.00013415,2]
[331522266,1720446847603,-255.0,0.00013444,2]
[331522267,1720446847614,-191.52,0.00013471,2]
[331522268,1720446847626,-162.51,0.00013482,2]
[331522269,1720446847636,-162.51,0.00013549,2]
[331522270,1720446847646,-420.0,0.0001356,2]
[331522271,1720446847656,-389.25,0.00013699,2]
[331522272,1720446847665,-1162.66,0.00013699,2]
[331522273,1720446847675,-158.54494384,0.00013802,2]
[331522274,1720446847685,-158.54494384,0.00013802,2]
[331522275,1720446847696,-158.54494384,0.00013802,2]
[331522276,1720446847705,-19043.7859089,0.0001388,2]
[331522277,1720446847715,-500.0,0.00013888,2]
[331522278,1720446847725,-30981.73469112,0.00013899,2]
[331522279,1720446847736,-1349.73038249,0.00013899,2]
[331522280,1720446847746,-11558.53433162,0.00013899,2]
[331522281,1720446847756,-10000.0,0.00013899,2]
[331522282,1720446847766,-4705.7756,0.000139,2]
[331522283,1720446847776,-2324.21109593,0.000139,2]
[331522284,1720446847786,-2136.1227,0.000139,2]
[331522285,1720446847796,-233.44077147,0.000139,2]
[331522286,1720446847806,-7500.0,0.000139,2]
[331522287,1720446847816,-392.0076937,0.000139,2]
[331522288,1720446847829,-233.44077147,0.00013905,2]
[331522289,1720446847838,-233.44077147,0.00013911,2]
[331522290,1720446847848,-233.44077147,0.00013916,2]
[331522291,1720446847858,-233.44077147,0.00013921,2]
[331522292,1720446847867,-214.94136781,0.00013929,2]
[331522293,1720446847877,-3744.80942975,0.00013929,2]
[331522294,1720446847887,-595.1,0.00013973,3]
[331522295,1720446847896,-217.93921973,0.00013999,2]
[331522296,1720446847907,-152.55745381,0.00013999,2]
[331522297,1720446847916,-758.0,0.00014,2]
[331522298,1720446847926,-224060.78357216,0.00014,2]
[331522299,1720446847936,-29047.0,0.00014,2]
[331522300,1720446847946,-2901.0,0.00014,2]
[331522301,1720446847955,-29091.46082002,0.00014,2]
[331522302,1720446847969,-462.53216332,0.00014,2]
[331522303,1720446847987,-322.91174239,0.00014,2]
[331522304,1720446847999,-2850.3344421,0.00014,2]
[331522305,1720446848011,-2005.57355483,0.00014,2]
[331522306,1720446848662,-24662.62556401,0.00014,2]
[331522307,1720446848674,-2513.8075808,0.00014,2]
[331522308,1720446848686,-310.0,0.00014,2]
[331522309,1720446848714,-187780.75413253,0.00014,2]
[331522310,1720446848724,-296618.77340247,0.00014,2]
[331522311,1720446848736,-169982.5413777,0.00014,2]
[331522312,1720446849246,-718.87488019,0.00014,2]
[331522313,1720446849258,-1441.56730736,0.00014,2]
[331522314,1720446849279,-569.44888,0.00014,2]
[331522315,1720446849290,-326.36485902,0.00014,2]
[331522316,1720446849306,-355.88193878,0.00014,2]
[331522317,1720446849317,-531.2423039,0.00014,2]
[331522318,1720446849478,-358.56502115,0.00014,2]
[331522319,1720446849489,-3761.93,0.00014,2]
[331522320,1720446849501,-249381.45640444,0.00014,2]
[331522321,1720446849653,159.59552856,0.00011199,2]
[331522322,1720446849692,-28154.15866625,0.00014,2]
[331522323,1720446849703,-2578046.37561128,0.00014,2]
[331522324,1720446849713,-252.16165507,0.00014029,2]
[331522325,1720446849722,-500.0,0.00014129,2]
[331522326,1720446849731,-500.0,0.00014138,2]
[331522327,1720446849741,-500.0,0.00014146,2]
[331522328,1720446849750,-500.0,0.00014155,2]
[331522329,1720446849759,-500.0,0.00014164,2]
[331522330,1720446849769,-500.0,0.00014173,2]
[331522331,1720446849779,-500.0,0.00014182,2]
[331522332,1720446849788,-500.0,0.0001419,2]
[331522333,1720446849797,-500.0,0.00014199,2]
[331522334,1720446849807,-500.0,0.00014208,2]
[331522335,1720446849816,-500.0,0.00014217,2]
[331522336,1720446849827,-500.0,0.00014226,2]
[331522337,1720446849836,-500.0,0.00014234,2]
[331522338,1720446849845,-500.0,0.00014243,2]
[331522339,1720446849854,-1000.0,0.00014248,2]
[331522340,1720446849864,-500.0,0.00014252,2]
[331522341,1720446849873,-500.0,0.00014261,2]
[331522342,1720446849882,-500.0,0.0001427,2]
[331522343,1720446849891,-500.0,0.00014278,2]
[331522344,1720446849900,-500.0,0.00014287,2]
[331522345,1720446849909,-500.0,0.00014296,2]
[331522346,1720446849918,-500.0,0.00014305,2]
[331522347,1720446849928,-500.0,0.00014314,2]
[331522348,1720446849937,-500.0,0.00014322,2]
[331522349,1720446849947,-600.0,0.0001433,2]
[331522350,1720446849956,-500.0,0.00014331,2]
[331522351,1720446849965,-500.0,0.0001434,2]
[331522352,1720446849974,-500.0,0.00014349,2]
[331522353,1720446849983,-500.0,0.00014358,2]
[331522354,1720446849992,-500.0,0.00014366,2]
[331522355,1720446850002,-500.0,0.00014375,2]
[331522356,1720446850011,-500.0,0.00014384,2]
[331522357,1720446850020,-500.0,0.00014393,2]
[331522358,1720446850029,-500.0,0.00014402,2]
[331522359,1720446850038,-500.0,0.0001441,2]
[331522360,1720446850048,-500.0,0.00014419,2]
[331522361,1720446850057,-500.0,0.00014428,2]
[331522362,1720446850067,-500.0,0.00014437,2]
[331522363,1720446850079,-500.0,0.00014446,2]
[331522364,1720446850089,-500.0,0.00014454,2]
[331522365,1720446850098,-500.0,0.00014463,2]